Cogmind - Beta 13 @@@ ROGUE MODE // 2024.04.26 @ 19:36:36 Player: e.v.o Result: Self-destructed Performance ------------- Evolutions (1) 500 Regions Visited (2) 400 Robots Destroyed (8) 40 Value Destroyed (215) 215 Prototype IDs (0) 0 Alien Tech Used (0) 0 Bonus (0) 0 TOTAL SCORE: 1155 Bonus ------- None Cogmind --------- Core Integrity 194/400 Matter 300/300 Energy 100/100 System Corruption 0% Temperature Cool (0) Movement Flying (200) Ox2 Location -9/Materials Parts ------- > --- POWER (1) -------- (None) > --- PROPULSION (3) --- Flight Unit > --- UTILITY (3) ------ Heat Sink Small Storage Unit Structural Scanner > --- WEAPON (2) ------- Mining Claw Mining Claw > --- INVENTORY (8) ---- Ion Engine Signal Interpreter Light Assault Rifle Grenade Launcher Mining Claw Mining Claw Peak State ------------ > --- POWER ------------ Ion Engine > --- PROPULSION ------- Flight Unit Flight Unit Flight Unit > --- UTILITY ---------- Small Storage Unit Structural Scanner Hacking Suite > --- WEAPON ----------- Mining Claw Mining Claw > --- INVENTORY -------- Ion Engine Grenade Launcher Mining Claw Mining Claw [Rating: 11] Favorites ----------- Power Ion Engine Engine Ion Engine Propulsion Light Treads Treads Light Treads Flight Unit Flight Unit Utility Small Storage Unit Device Structural Scanner Storage Small Storage Unit Hackware Hacking Suite Weapon Assault Rifle Ballistic Gun Assault Rifle Slashing Weapon Mining Claw Build | -11 -10 -9 ------- Run | Yrd Mat Mat Slots Evolved 2 | . . 2 Power . | . . . Propulsion 1 | . . 1 Utility 1 | . . 1 Weapon . | . . . Parts Attached 24 | 6 11 7 Power 3 | 1 1 1 Engine 3 | 1 1 1 Core . | . . . Reactor . | . . . Propulsion 11 | 2 5 4 Treads 7 | 2 5 . Leg . | . . . Wheel . | . . . Hover . | . . . Flight 4 | . . 4 Utility 5 | 1 2 2 Device 3 | . 2 1 Storage 1 | 1 . . Processor . | . . . Hackware 1 | . . 1 Protection . | . . . Artifact . | . . . Weapon 5 | 2 3 . Energy Gun . | . . . Energy Cannon . | . . . Ballistic Gun 3 | 2 1 . Ballistic Cannon . | . . . Launcher . | . . . Special Weapon . | . . . Impact Weapon . | . . . Slashing Weapon 2 | . 2 . Piercing Weapon . | . . . Special Melee Weapon . | . . . Unidentified Prototypes . | . . . Parts Lost 5 | . . 5 Power 1 | . . 1 Propulsion 3 | . . 3 Utility 1 | . . 1 Weapon . | . . . Highest Loss Streak 3 | . . 3 To Critical Strikes . | . . . Average Slot Usage (%) 91 | . 93 85 Engine 11 | . 14 4 Treads 20 | . 27 . Flight 7 | . . 29 Device 10 | . 8 15 Storage 13 | . 14 11 Hackware 1 | . . 4 Ballistic Gun 18 | . 24 . Slashing Weapon 8 | . 3 22 Naked Turns . | . . . Heaviest Build 15 | 11 15 15 Greatest Support 40 | 40 40 12 Greatest Overweight (x) 4 | 3 4 1 Average Overweight (x) . | . . . Largest Inventory Capacity 8 | 8 8 8 Average Capacity 7 | 7 8 8 Most Carried 8 | 4 8 8 Average Carried 6 | 2 7 5 Final Capacity 8 | 8 8 8 Final Carried 8 | 4 8 6 Class Distribution -------------------- 100% | Mutant Dominant Class ---------------- Mutant | -10/Materials Mutant | -9/Materials Resources | -11 -10 -9 ----------- Run | Yrd Mat Mat Matter Collected 489 | 206 160 123 Remotely . | . . . Salvage Created 296 | . 160 136 Parts 22 | . 15 7 Haulers Intercepted 1 | . 1 . Recyclers Shooed . | . . . Parts Field Recycled . | . . . Retrieved Matter . | . . . Parts Self-Destructed . | . . . Prevented . | . . . Kills | -11 -10 -9 ------- Run | Yrd Mat Mat Combat Hostiles Destroyed 5 | . 2 3 Melee 3 | . . 3 Guns 2 | . 2 . Classes Destroyed 5 | . 4 1 Hauler 1 | . 1 . Operator 1 | . 1 . Watcher 1 | . 1 . Grunt 4 | . 2 2 Sentry 1 | . . 1 Best Kill Streak 2 | . 2 2 Combat Bots Only 2 | . 2 2 Max Kills in Single Turn 1 | . 1 1 Gunslinging . | . . . Exploded . | . . . Melee 1 | . . 1 Uniques/NPCs Destroyed . | . . . Combat | -11 -10 -9 -------- Run | Yrd Mat Mat Hostile Shots Fired 70 | . 3 67 Missed 22 | . 1 21 Damage Taken 511 | . 24 487 Core 206 | . . 206 Absorbed by Shields . | . . . Core Remaining (%) 100 | 100 100 . Volleys Fired 16 | . 16 . Largest 2 | . 2 . Hottest 40 | . 40 . Shots Fired 32 | . 32 . Gun 32 | . 32 . Cannon . | . . . Launcher . | . . . Special . | . . . Kinetic 32 | . 32 . Thermal . | . . . Explosive . | . . . Electromagnetic . | . . . Robot Hit Streak 3 | . 3 . Robot Miss Streak 4 | . 4 . Penetration Max . | . . . Secondary Targets 1 | . 1 . Max Gunslinging Chain 1 | . 1 . Shots Hit Robots 28 | . 16 12 Core Hits 12 | . 9 3 Critical Kills . | . . . Critical Parts Destroyed . | . . . Critical Strikes . | . . . Melee Attacks 33 | . . 33 Impact . | . . . Slashing 33 | . . 33 Piercing . | . . . Sneak Attacks . | . . . Combat Hostiles . | . . . Follow-up Attacks 3 | . . 3 Damage Inflicted 396 | . 154 242 Guns 154 | . 154 . Cannons . | . . . Explosions . | . . . Melee 242 | . . 242 Ramming . | . . . Kinetic 154 | . 154 . Thermal . | . . . Explosive . | . . . Electromagnetic . | . . . Impact . | . . . Slashing 242 | . . 242 Piercing . | . . . Highest Corruption . | . . . Average Corruption . | . . . Corruption Purged . | . . . Corruption Blocked . | . . . Overload Shots . | . . . Overflow Damage 3 | . . 3 Projectiles . | . . . Explosions . | . . . Melee 3 | . . 3 Knockbacks . | . . . Impact . | . . . Kinetic . | . . . Secondary . | . . . Self-Inflicted Damage . | . . . Shots . | . . . Rammed . | . . . Targets Rammed . | . . . Kicked . | . . . Crushed . | . . . Highest Temperature 10 | . 6 10 Average Temperature 7 | . 6 10 Received Heat Transfer 180 | . 12 168 Siege Activations . | . . . Robots Corrupted . | . . . Combat Hostiles . | . . . Parts Fried . | . . . Impact Corruptions . | . . . Robots Melted . | . . . Combat Hostiles . | . . . Parts Melted . | . . . Heat Transferred . | . . . Parts Sabotaged . | . . . Parts Stolen . | . . . Parts Stripped . | . . . Power Chain Reactions . | . . . Alert | -11 -10 -9 ------- Run | Yrd Mat Mat Peak Influence 131 | . 107 131 Initial 4 | . . 4 Average 36 | . 38 47 Maximum Alert Level . | . . . Low Security (%) 100 | 100 100 100 Level 1 . | . . . Level 2 . | . . . Level 3 . | . . . Level 4 . | . . . Level 5 . | . . . High Security . | . . . Max Security . | . . . Squads Dispatched 2 | . 1 1 Investigation . | . . . Extermination . | . . . Reinforcement 2 | . 1 1 Assault . | . . . Garrison . | . . . Intercept . | . . . Searches Triggered . | . . . Construction Impeded . | . . . Haulers Reinforced . | . . . Active Scanning Responses . | . . . Cargo Convoy Interrupts . | . . . Stealth | -11 -10 -9 --------- Run | Yrd Mat Mat Distress Signals 1 | . 1 . Communications Jammed . | . . . Distress Signals . | . . . Times Spotted 17 | . 6 11 Peak Tracking Total 4 | . 3 4 Tactical Retreats 3 | . . 3 Traps | -11 -10 -9 ------- Run | Yrd Mat Mat Traps Triggered 2 | . 2 . Indirectly . | . . . Trap Hack Attempts . | . . . Triggered . | . . . Disarmed . | . . . Reprogrammed . | . . . Reused . | . . . Traps Extracted . | . . . Installed . | . . . Triggered . | . . . Machines | -11 -10 -9 ---------- Run | Yrd Mat Mat Machines Disabled . | . . . Max in Single Turn . | . . . Machines Repaired . | . . . Machines Dismantled . | . . . Machines Sabotaged . | . . . Overloaded Fab Kills . | . . . Hacking | -11 -10 -9 --------- Run | Yrd Mat Mat Machines Accessed 1 | . 1 . Terminals 1 | . 1 . Fabricators . | . . . Repair Stations . | . . . Recycling Units . | . . . Scanalyzers . | . . . Garrison Access . | . . . Total Hacks 6 | . 6 . Successful 2 | . 2 . Failed 4 | . 4 . Catastrophic . | . . . Database Lockouts . | . . . Manual . | . . . Terminals 6 | . 6 . Fabricators . | . . . Repair Stations . | . . . Recycling Units . | . . . Scanalyzers . | . . . Garrison Access . | . . . Terminal Hacks 2 | . 2 . Locate Traps 1 | . 1 . Zone Layout 1 | . 1 . Fabricator Hacks . | . . . Repair Station Hacks . | . . . Recycling Unit Hacks . | . . . Scanalyzer . | . . . Garrison Access Hacks . | . . . Unauthorized Hacks . | . . . Terminals . | . . . Fabricators . | . . . Repair Stations . | . . . Recycling Units . | . . . Scanalyzers . | . . . Garrison Access . | . . . Data Cores Recovered . | . . . Used . | . . . Hacking Detections 1 | . 1 . Full Trace Events 1 | . 1 . Feedback Events . | . . . Feedback Blocked . | . . . Robot Schematics Acquired . | . . . Robots Built . | . . . Authchips . | . . . Time . | . . . Total Robot Build Rating . | . . . Part Schematics Acquired . | . . . Parts Built . | . . . Authchips . | . . . Time . | . . . Total Part Build Rating . | . . . Parts Repaired . | . . . Time . | . . . Parts Recycled . | . . . Recycled Matter . | . . . Retrieved Matter . | . . . Retrieved Components . | . . . Parts Scanalyzed . | . . . Part Schematics Acquired . | . . . Parts Damaged . | . . . Bothacking | -11 -10 -9 ------------ Run | Yrd Mat Mat Used RIF Installer . | . . . Robots Hacked . | . . . Non-combat . | . . . Combat . | . . . Robot Hacks Applied . | . . . Relay Couplers Released . | . . . Fabnet Peak Effective % . | . . . Robots Rewired . | . . . Allies Hacked . | . . . Hacks Repelled . | . . . Allies | -11 -10 -9 -------- Run | Yrd Mat Mat Total Allies . | . . . Largest Group . | . . . Highest-Rated Group . | . . . Highest-Rated Ally . | . . . Total Orders . | . . . Ally Attacks . | . . . Total Damage . | . . . Kills . | . . . Allies Corrupted . | . . . Allies Melted . | . . . Intel | -11 -10 -9 ------- Run | Yrd Mat Mat Robot Analysis Total . | . . . Derelict Logs Recovered . | . . . Drone Launches . | . . . Drone Recoveries . | . . . Exploration | -11 -10 -9 ------------- Run | Yrd Mat Mat Turns Passed 962 | 99 641 222 Spaces Moved 486 | 54 336 96 Core 16 | 14 2 . Treads 374 | 40 334 . Legs . | . . . Wheels . | . . . Hover . | . . . Flight 96 | . . 96 Fastest Speed 34 | 50 160 34 Average Speed 146 | 160 160 88 Slowest Speed 250 | 200 250 117 Overloaded Moves . | . . . Propulsion Burnouts . | . . . Robots Hopped . | . . . Cave-ins Triggered . | . . . Exploration Rate (%) 20 | 6 48 8 Regions Visited 2 Branch Regions . Pre-discovered Areas . | . . . Known Exits Taken . | . . . Unknown Exits Taken 2 | 1 1 . Scrap Searched . | . . . Spaces Dug 2 | . . 2 Terrain Destroyed 2 | . . 2 Melee 2 | . . 2 Projectile . | . . . AOE . | . . . Terrain Rammed . | . . . Walls Destroyed . | . . . Machines Disabled . | . . . Actions | -11 -10 -9 --------- Run | Yrd Mat Mat Total 647 | 65 409 173 Wait 65 | . 31 34 Move 484 | 53 335 96 Hop . | . . . Pick Up 16 | 6 8 2 Fast Attach 13 | 4 8 1 Attach 9 | 2 1 6 Detach 1 | . . 1 Swap 2 | . 2 . Drop 11 | . 8 3 Fire 16 | . 16 . Melee 30 | . . 30 Ram . | . . . Kick . | . . . Crush . | . . . Escape Stasis . | . . . Rewire . | . . . Trap . | . . . Miscellaneous . | . . . Route ------- -11/Scrapyard -10/Materials (discovered 3 exits: [*Mat] / [Min] / [Sub]) -9/Materials History --------- Turn | Location | Event 12 | -11/Scrapyard | Discovered new exit (range 15) 100 | -11/Scrapyard | Entered Materials 171 | -10/Materials | Discovered new exit (range 14) 310 | -10/Materials | Build established: Mutant 363 | -10/Materials | Discovered new exit (range 16) 555 | -10/Materials | Discovered new exit (range 9) 741 | -10/Materials | Entered another Materials area 741 | -9/Materials | Evolved 2 slots: Propulsion x1, Utility x1 891 | -9/Materials | Lost 3 parts (1p1n1u) 963 | -9/Materials | Self-destructed Last Messages --------------- 00873_ G-34 Mercenary destroyed. 00874_ K-01 Serf collects debris. 00876_ Acquired 34 matter. 00876_ Acquired 26 matter. 00877_ Acquired Heat Sink. 00878_ Dropped Aluminum Leg. 00879_ Acquired 10 matter. 00896_ Flight Unit destroyed. 00898_ Destroyed Flight Unit. 00910_ S-10 Pest Lgt. Assault Rifle ripped off. 00924_ K-01 Serf collects debris. 00931_ O-16 Technician: "IFF HANDSHAKE FAILED. SECURING TERMINAL." 00933_ K-01 Serf collects debris. 00936_ ALERT: Hostiles spotted, dispatching reinforcements to Terminal M003. 00936_ K-01 Serf collects debris. 00951_ Mining Claw follow-up attack on S-10 Pest. 00952_ Flight Unit destroyed. Map ----- +----------------------------------------------------+ | | | | | | | | | ?????????????????????????????????????????????????? | | ???????????????????????#########?????????????????? | | ???????????????????????#########?????????????????? | | ???????????????????###### * ##?????????????????? | | ???????????????????###### ##????????########## | | ???????????????????## = ##????????########## | | ???????????????????## ### =%=###???????## = # | | ???????????????????## ### ! [####??????## = # "" | | ???????????????????## #####=##"########### # "" | | ???????????????????## ##### ############## + "" | | ???????????????????## ##?## #### !! # # | | ???????????????????## ##?## #### """ + # | | ???????????????????## ##?## #### """ # ##### | | ???????????????????## ##?## #### """ # ##### | | ???????????????????## ##?## #### # ##??? | | ???????????????????## ##?## #### # ##??? | | ???????????????????## ##?## #### [ + ##??? | | ??? ? ### ## ##??? #### # | | ???## #######+##### ###?? ??############ | | ???## ##### ############## | | ???## ####+#########???########## | | ???## !! @s ##???###### | | ??? # !! #### ] ##????????????? | | ??? # """ ##+###### ? ##????????????? | | ??? # """ ## ?????? ##????????????? | | ??? # """ ##"????????????? ##????????????? | | ??? + ????? ????????????????? ##????????????? | | ?????????? ????????????????? ##????????????? | | ?????????#"T"# ???????????????????????????????? | | ?????????######+##???????????????????????????????? | | ????????? ???????????????????????????????? | | ?????????????????????????????????????????????????? | | ?????????????????????????????????????????????????? | | ?????????????????????????????????????????????????? | | ?????????????????????????????????????????????????? | | ?????????????????????????????????????????????????? | | ?????????????????????????????????????????????????? | | ?????????????????????????????????????????????????? | | ?????????????????????????????????????????????????? | | ?????????????????????????????????????????????????? | | ?????????????????????????????????????????????????? | | ?????????????????????????????????????????????????? | | ?????????????????????????????????????????????????? | | ?????????????????????????????????????????????????? | | ?????????????????????????????????????????????????? | | ?????????????????????????????????????????????????? | +----------------------------------------------------+ Best States ------------- Heat Dissipation 38 Energy Generation 10 Energy Capacity 250 Matter Stores 300 Matter Capacity 300 Sight Range 16 Terrain Scan Density 10 Evasion (%) 63 Recoil Reduction 2 Offensive Hacking 10 Item Schematics ----------------- None Robot Schematics ------------------ None Fabricated ------------ Nothing Alien Tech Used ----------------- None Achievements -------------- None Challenges ------------ None Game ------ Seed DiametricPlatingPlatform Manual? 0 Play Time 00:10:39 Cumulative 49.0 hours Start 2024.04.26 @ 19:28:30 End 2024.04.26 @ 19:36:36 Sessions 1 Manual Loads 0 Difficulty Rogue Special Mode None Game No. 79 Rogue 63 Adventurer 16 Explorer 0 Win Type - Total 0 Types 0/0/0/0/0/0/0/0/0 Lore% 16 Gallery% 35 Achievement% 26 Wizard Run 0 Options --------- Layout 2 ASCII 0 Keyboard 0 Movement Mouse Keybinds 0 Fullscreen 2 Font 24/Smallcaps Map View 50x44 Zoom Use 0% Tactical HUD 1 Map Filters NONE Filters NONE Steam 1 RUN: 63060f75-06c5-41de-a334-e2b8571a9a51